bitfinex/quotes_ETHUSD_20241120
["timestamp","ask_amount","ask_price","bid_price","bid_amount"]
[1732085182777,1.15,3106.0,3105.6,0.03026728]
[1732085182974,3.21979,3105.8,3105.6,0.03026728]
[1732085183421,3.21979,3105.8,3105.4,1.3228]
[1732085183619,4.36961,3106.0,3105.7,0.03023495]
[1732085183819,4.36961,3106.0,3105.4,1.777115]
[1732085183980,4.36961,3106.0,3105.8,0.03020393]
[1732085184178,4.36961,3106.0,3105.4,8.217395]
[1732085184379,4.36961,3106.0,3105.9,0.03018072]
[1732085184679,4.36961,3106.0,3105.4,4.997215]
[1732085184907,4.36961,3106.0,3105.5,0.4997215]
[1732085185102,4.36961,3106.0,3105.5,0.52999509]
[1732085185292,4.36961,3106.0,3105.5,3.52999509]
[1732085185293,3.21978,3105.8,3105.5,3.52999509]
[1732085185496,4.36961,3106.0,3105.5,0.52999509]
[1732085185723,4.36961,3106.0,3105.5,3.52999509]
[1732085186238,3.21973,3105.9,3105.5,0.52999509]
[1732085186644,3.21982,3105.8,3105.5,0.52999509]
[1732085186948,3.21973,3105.9,3105.5,0.03027359]
[1732085187311,1.15,3106.0,3105.5,0.03027359]
[1732085187312,1.15,3106.0,3105.6,0.7831]
[1732085187638,3.2,3106.2,3105.7,0.38133736]
[1732085187806,3.21931,3106.3,3105.7,0.41145938]
[1732085188014,3.21917,3106.4,3105.8,3.21974]
[1732085188210,3.21917,3106.4,3105.8,3.24983892]
[1732085189005,3.21927,3106.3,3105.8,3.24983892]
[1732085189367,3.21917,3106.4,3105.8,3.24983892]
[1732085189649,3.21908,3106.5,3105.9,4.00275]
[1732085189815,3.21908,3106.5,3105.9,4.03284032]
[1732085190452,3.21908,3106.5,3106.0,3.21955]
[1732085190650,3.21908,3106.5,3106.0,3.24973409]
[1732085191311,3.21927,3106.3,3106.0,0.03018409]
[1732085191611,3.21936,3106.2,3106.0,0.03018409]
[1732085191811,3.21922,3106.4,3106.0,0.03018409]
[1732085192235,6.43801,3106.6,3106.0,0.03018409]
[1732085192437,3.21933,3106.3,3106.0,0.03018409]
[1732085192756,3.21922,3106.4,3106.0,0.03018409]
[1732085194030,3.2189,3106.7,3106.0,0.03018409]
[1732085194031,3.21926,3106.3,3106.0,0.03018409]
[1732085194226,3.21917,3106.4,3106.0,0.03018409]
[1732085194428,3.21927,3106.3,3106.0,0.03018409]
[1732085195251,3.21944,3106.2,3106.0,0.03018409]
[1732085195454,3.21947,3106.1,3106.0,0.03018409]
[1732085204475,3.21973,3105.9,3105.2,3.0]
[1732085204771,3.21979,3105.8,3105.3,1.3287]
[1732085206174,3.21973,3105.9,3105.3,1.3287]
[1732085206381,3.2202,3105.4,3105.1,0.7787]
[1732085206533,3.22002,3105.6,3105.1,0.7787]
[1732085206731,3.22005,3105.6,3105.1,0.7787]
[1732085207477,3.22005,3105.6,3105.1,1.178637]
[1732085208750,3.21999,3105.6,3105.1,0.7787]
[1732085208950,3.2202,3105.4,3105.1,0.7787]
[1732085209466,3.21999,3105.6,3105.1,0.7787]
[1732085209467,3.22009,3105.5,3105.1,0.7787]
[1732085210338,4.04596,3105.8,3105.1,1.178634]
[1732085210538,3.21974,3105.9,3105.3,3.22029]
[1732085210775,3.21981,3105.8,3105.3,3.22029]
[1732085211075,3.21981,3105.8,3105.3,0.721943]
[1732085211377,3.21995,3105.7,3105.4,0.02920474]
[1732085211748,3.21995,3105.7,3105.2,0.55]
[1732085212044,3.21995,3105.7,3105.3,0.02920573]
[1732085212255,3.21995,3105.7,3105.2,3.77037]
[1732085212256,3.21962,3106.0,3105.4,0.37995757]
[1732085212487,3.21962,3106.0,3105.4,0.4091473]
[1732085212784,3.21979,3105.8,3105.4,0.02918973]
[1732085212966,3.21979,3105.8,3105.2,3.77037]
[1732085213166,3.21979,3105.8,3105.2,0.55]
[1732085213475,3.21979,3105.8,3105.3,3.24948573]
[1732085213681,3.21979,3105.8,3105.3,4.0293483]
[1732085215169,3.21969,3105.9,3105.4,0.7787]
[1732085215375,3.21969,3105.9,3105.5,0.02915929]
[1732085216088,3.21962,3106.0,3105.5,3.24922929]
[1732085216539,3.21941,3106.2,3105.6,3.21996]
[1732085216745,3.21941,3106.2,3105.7,0.02911776]
[1732085217080,3.2195,3106.1,3105.7,0.02911776]
[1732085217258,3.2195,3106.1,3105.5,3.22007]
[1732085217589,3.2195,3106.1,3105.6,0.399877]
[1732085217753,3.2195,3106.1,3105.6,0.42902519]
[1732085218548,3.21941,3106.2,3105.7,0.7787]
[1732085218770,3.21941,3106.2,3105.8,0.02909454]
[1732085218988,3.21941,3106.2,3105.7,0.7787]
[1732085219278,3.21941,3106.2,3105.9,0.02907133]
[1732085219489,3.21941,3106.2,3105.7,3.99857]
[1732085219682,4.04513,3106.6,3106.0,0.02905533]
[1732085219884,4.04513,3106.6,3105.7,3.99851]
[1732085220085,3.21922,3106.4,3106.1,0.02902491]
[1732085220291,3.21922,3106.4,3105.9,3.21966]
[1732085220499,4.04513,3106.6,3106.2,0.02900891]
[1732085220500,3.21903,3106.6,3106.2,0.02900891]
[1732085220647,3.21903,3106.6,3106.1,0.7787]
[1732085220849,3.21903,3106.6,3106.3,0.02899291]
[1732085221053,3.21903,3106.6,3106.1,0.7787]
[1732085221280,3.21903,3106.6,3106.4,0.0290237]
[1732085221475,3.862811,3106.6,3106.1,0.7787]
[1732085221684,3.21903,3106.6,3106.5,0.0290077]
[1732085221895,3.21878,3106.8,3106.1,0.7787]
[1732085222086,3.21885,3106.7,3106.5,0.0290077]
[1732085222293,3.21885,3106.7,3106.1,3.99815]
[1732085222461,3.21885,3106.7,3106.6,0.0289845]
[1732085222653,3.945223,3106.7,3106.1,3.99815]
[1732085222997,3.21885,3106.7,3106.1,3.99815]
[1732085223223,3.21885,3106.7,3106.2,0.02904849]
[1732085223582,3.21878,3106.8,3106.2,0.02904849]
[1732085223789,3.21896,3106.6,3106.2,0.02904849]
[1732085224408,3.21912,3106.5,3106.2,0.02904849]
[1732085225799,3.21885,3106.7,3106.2,0.02904849]
[1732085226104,3.21917,3106.4,3106.2,0.02904849]
[1732085226312,3.21913,3106.5,3106.2,0.02904849]
[1732085226494,3.21896,3106.6,3106.2,0.02904849]
[1732085226495,3.21921,3106.4,3106.2,0.02904849]
[1732085226820,6.43798,3106.6,3105.9,3.99836]
[1732085227032,6.43798,3106.6,3106.0,0.399836]
[1732085227400,3.21901,3106.6,3106.1,0.02906453]
[1732085227781,3.21909,3106.5,3105.9,3.99829]
[1732085228012,3.21909,3106.5,3106.0,0.02907916]
[1732085229029,3.21919,3106.4,3106.0,0.02907916]
[1732085231636,3.21935,3106.3,3106.0,0.02907916]
[1732085233332,3.21926,3106.3,3106.0,0.02907916]
[1732085233488,3.21939,3106.2,3106.0,0.02907916]
[1732085233692,4.07690448,3106.3,3105.6,4.00449]
[1732085233693,6.43859,3106.3,3105.7,3.21985]
[1732085233893,6.43859,3106.3,3106.1,0.02904252]
[1732085234187,3.21949,3106.1,3105.6,0.7846]
[1732085234413,3.21926,3106.3,3105.7,3.21982]
[1732085234589,3.21938,3106.2,3105.6,4.00449]
[1732085235413,3.21927,3106.3,3105.7,0.55]
[1732085235620,3.21911,3106.5,3105.9,0.7846]
[1732085235833,3.21917,3106.4,3105.9,0.7846]
[1732085236337,3.21907,3106.5,3106.0,3.21957]
[1732085236739,3.21907,3106.5,3105.9,0.7846]
[1732085236949,6.43821,3106.5,3105.9,4.00425]
[1732085237134,3.21916,3106.4,3105.9,4.00425]
[1732085237645,3.21916,3106.4,3105.9,0.7846]
[1732085237800,3.21907,3106.5,3105.9,0.7846]
[1732085237999,3.21927,3106.3,3105.9,0.7846]
[1732085238305,3.21947,3106.1,3105.6,0.7846]
[1732085239217,3.21947,3106.1,3105.6,4.86123248]
[1732085240159,0.7963,3106.2,3105.7,3.21988]
[1732085240364,3.21927,3106.3,3105.7,3.21988]
[1732085241272,3.21927,3106.3,3105.8,0.02916089]
[1732085241434,3.21927,3106.3,3105.7,3.21988]
[1732085241759,6.43862,3106.3,3105.9,0.02913767]
[1732085241915,6.43862,3106.3,3105.8,0.02916089]
[1732085242150,3.21938,3106.2,3106.0,0.02911446]
[1732085242345,3.21938,3106.2,3105.9,0.02913767]
[1732085242572,3.21938,3106.2,3106.1,0.02909125]
[1732085242771,3.21938,3106.2,3106.0,0.02911446]
[1732085243095,3.21938,3106.2,3106.1,0.02909125]
[1732085243293,3.21938,3106.2,3105.7,3.21988]
[1732085243495,3.21938,3106.2,3106.1,0.02909125]
[1732085243790,3.21938,3106.2,3105.7,3.21988]
[1732085244292,3.21938,3106.2,3105.8,0.02916089]
[1732085244503,3.21938,3106.2,3105.7,3.21988]
[1732085244653,3.21938,3106.2,3105.9,0.02913767]
[1732085244854,3.21938,3106.2,3105.7,3.21988]
[1732085245082,3.21938,3106.2,3106.0,0.02911446]
[1732085245276,3.21938,3106.2,3105.7,3.21988]
[1732085245482,3.21938,3106.2,3106.1,0.02909125]
[1732085245807,3.21938,3106.2,3105.7,3.21988]
[1732085246096,3.21938,3106.2,3106.1,0.02909125]
[1732085246299,3.21938,3106.2,3105.7,3.21988]
[1732085246514,3.21938,3106.2,3106.1,0.02909125]
[1732085247089,3.21938,3106.2,3105.7,3.21988]
[1732085247385,3.21938,3106.2,3106.1,0.02909125]
[1732085247591,3.21938,3106.2,3105.7,3.21988]
[1732085247989,3.21938,3106.2,3105.8,0.02916089]
[1732085248351,3.21938,3106.2,3105.7,3.21988]
[1732085248547,3.21938,3106.2,3105.9,0.02913767]
[1732085248792,3.21938,3106.2,3105.8,0.02916089]
[1732085248993,3.21928,3106.3,3106.0,0.02911446]
[1732085249151,3.21928,3106.3,3105.9,0.02913767]
[1732085249348,0.7963,3106.4,3106.0,3.24867446]
[1732085249628,3.21896,3106.6,3106.1,0.7936]
[1732085249834,6.43801,3106.6,3106.1,0.82269125]
[1732085250131,3.21916,3106.4,3106.1,0.82269125]
[1732085251228,6.43839,3106.4,3106.1,0.82269125]
[1732085251702,3.21916,3106.4,3106.1,0.82269125]
[1732085252108,6.43841,3106.4,3106.1,0.82269125]
[1732085252310,3.21931,3106.3,3106.1,0.82269125]
[1732085252923,3.21936,3106.2,3106.1,0.02909125]
[1732085253190,3.21936,3106.2,3105.7,0.55]
[1732085253391,3.21936,3106.2,3105.8,0.02915325]
[1732085253591,3.21936,3106.2,3105.7,1.006363]
[1732085253820,3.21936,3106.2,3105.8,0.02915325]
[1732085254035,3.21936,3106.2,3105.7,1.006363]
[1732085254237,3.21936,3106.2,3105.9,0.02913003]
[1732085254534,3.21936,3106.2,3105.7,1.006363]
[1732085254754,3.21936,3106.2,3106.0,0.02910682]
[1732085255054,3.21935,3106.3,3106.1,0.0290836]
[1732085255375,3.21937,3106.2,3105.8,0.5019923]
[1732085256060,3.21937,3106.2,3105.9,0.24098571]
[1732085256256,3.21937,3106.2,3106.0,0.24098571]
[1732085256447,3.21937,3106.2,3106.1,0.24098571]
[1732085256645,3.21937,3106.2,3106.1,0.27005372]
[1732085263381,3.2192,3106.4,3106.1,0.27005372]
[1732085263586,3.2192,3106.4,3106.2,1.05228571]
[1732085263899,3.2192,3106.4,3106.3,0.27002202]
[1732085264612,3.21898,3106.6,3106.3,0.27002202]
[1732085264848,3.21913,3106.5,3106.4,0.24098571]
[1732085265046,3.21913,3106.5,3106.4,0.26999882]
[1732085265399,3.21898,3106.6,3106.4,0.26999882]
[1732085265600,3.21898,3106.6,3106.5,0.24098571]
[1732085265828,3.21898,3106.6,3106.5,0.26997561]
[1732085266551,3.21898,3106.6,3106.5,0.27003814]
[1732085266842,4.240896,3106.6,3106.5,0.0289899]
[1732085267158,3.21934,3106.3,3106.0,0.8113]
[1732085267645,3.21937,3106.2,3106.1,0.02902815]
[1732085270322,3.21926,3106.4,3106.1,0.02902815]
[1732085270536,3.21926,3106.3,3106.1,0.02902815]
[1732085270737,3.21936,3106.2,3106.1,0.02902815]
[1732085272026,3.21936,3106.2,3105.7,0.8188]
[1732085272228,3.21947,3106.1,3105.8,0.02909779]
[1732085272454,3.21947,3106.1,3105.7,0.8188]
[1732085273040,3.21936,3106.2,3105.8,0.02909779]
[1732085273222,3.21936,3106.2,3105.7,0.8188]
[1732085273566,3.21936,3106.2,3105.8,0.02914101]
[1732085273567,6.43881,3106.2,3105.8,0.02914101]
[1732085273719,3.21936,3106.2,3105.8,0.02914101]
[1732085273920,6.4388,3106.2,3105.7,0.8188]
[1732085274359,3.21949,3106.1,3105.8,0.02914101]
[1732085274742,3.21949,3106.1,3105.7,0.8188]
[1732085274971,3.21949,3106.1,3105.9,0.02911059]
[1732085275175,3.21949,3106.1,3105.8,0.0291338]
[1732085275474,3.21949,3106.1,3106.0,0.02908737]
[1732085275677,3.21949,3106.1,3105.7,0.8188]
[1732085275988,3.21949,3106.1,3106.0,0.02908737]
[1732085276164,3.21949,3106.1,3105.7,0.8188]
[1732085276376,3.21949,3106.1,3106.0,0.02908837]
[1732085276529,3.21949,3106.1,3105.7,0.8188]
[1732085276728,3.21949,3106.1,3106.0,0.02908837]
[1732085277445,3.21949,3106.1,3105.7,0.8188]
[1732085277778,3.21949,3106.1,3106.0,0.02908837]
[1732085277946,3.21949,3106.1,3105.7,0.8188]
[1732085278131,3.21949,3106.1,3106.0,0.02908837]
[1732085278331,3.21949,3106.1,3105.7,0.8188]
[1732085278575,3.21936,3106.2,3106.0,0.02908837]
[1732085278861,3.21936,3106.2,3105.7,0.8188]
[1732085279065,3.21936,3106.2,3106.1,0.02906516]
[1732085279255,3.21936,3106.2,3105.7,0.8188]
[1732085279460,6.43881,3106.2,3106.1,0.02906516]
[1732085279887,6.43881,3106.2,3105.7,0.8188]
[1732085280089,3.21936,3106.2,3106.1,0.02906516]
[1732085280312,3.21936,3106.2,3105.7,0.8188]
[1732085280616,6.43882,3106.2,3106.1,0.02906516]
[1732085280822,3.21962,3106.0,3105.7,0.8188]
[1732085280979,3.21949,3106.1,3105.7,0.8188]
[1732085281300,3.21936,3106.2,3105.7,0.8188]
[1732085282217,6.4388,3106.2,3105.7,0.8188]
[1732085283281,3.21936,3106.2,3105.7,0.8188]
[1732085283693,3.21959,3106.0,3105.7,0.8188]
[1732085284591,6.4388,3106.2,3105.7,0.8188]
[1732085284794,3.21952,3106.1,3105.7,0.8188]
[1732085286139,3.21952,3106.1,3105.8,0.0291348]
[1732085286309,3.21952,3106.1,3105.7,0.8188]
[1732085286515,3.21952,3106.1,3105.9,0.02911015]
[1732085286806,3.21952,3106.1,3105.7,0.8188]
[1732085287008,3.21952,3106.1,3106.0,0.02908694]
[1732085287212,3.21952,3106.1,3105.7,0.8188]
[1732085287410,3.21952,3106.1,3106.0,0.02908694]
[1732085287615,3.2196,3106.0,3105.7,0.8188]
[1732085288425,3.21978,3105.8,3105.4,0.8188]
[1732085289520,6.43925,3106.0,3105.4,4.03899]
[1732085290103,3.21968,3105.9,3105.4,4.03899]
[1732085290328,3.21968,3105.9,3105.4,0.8188]
[1732085290805,3.21968,3105.9,3105.4,4.03897]
[1732085291060,3.21968,3105.9,3105.4,4.6906498]
[1732085291427,3.21948,3106.1,3105.4,4.6906198]
[1732085291720,3.21963,3106.0,3105.5,3.22005]
[1732085292464,3.21963,3106.0,3105.5,3.69554215]
[1732085295073,6.43884,3106.2,3105.6,3.21989]
[1732085295230,3.21948,3106.1,3105.6,3.21989]
[1732085296950,3.21942,3106.2,3105.7,3.21987]
[1732085297153,3.21942,3106.2,3105.5,3.69551215]
[1732085297455,3.21948,3106.1,3105.5,3.69551215]
[1732085297967,3.21948,3106.1,3105.6,3.21998]
[1732085298736,3.21942,3106.2,3105.6,3.21998]
[1732085299264,3.21948,3106.1,3105.6,3.21998]
[1732085299464,6.43888,3106.2,3105.6,3.21998]
[1732085299675,3.21942,3106.2,3105.6,3.21998]
[1732085300045,3.21942,3106.2,3105.5,0.47549215]
[1732085300363,3.21942,3106.2,3105.6,3.21992]
[1732085300559,6.43887,3106.2,3105.6,3.21992]
[1732085300779,3.21947,3106.1,3105.6,3.21992]
[1732085301267,3.21947,3106.1,3105.7,0.02915593]
[1732085301475,3.21942,3106.2,3105.7,0.02915593]
[1732085302032,3.21942,3106.2,3105.7,3.24899593]
[1732085302232,0.7858,3106.3,3105.7,3.21984]
[1732085302465,3.21927,3106.3,3105.9,0.8007]
[1732085302678,3.21927,3106.3,3106.0,0.02908629]
[1732085304279,3.21921,3106.4,3106.0,0.02908629]
[1732085304434,3.21937,3106.2,3106.0,0.02908629]
[1732085306333,3.21921,3106.4,3106.0,0.02908629]
[1732085306578,6.43845,3106.4,3106.0,0.02908629]
[1732085307671,3.21921,3106.4,3106.0,0.02908629]
[1732085307877,6.43845,3106.4,3106.0,0.02908629]
[1732085308075,3.21926,3106.3,3106.0,0.02908629]
[1732085309588,3.21921,3106.4,3106.0,0.02908629]
[1732085309873,6.43881,3106.2,3106.0,0.02908629]
[1732085310040,3.21937,3106.2,3106.0,0.02908629]
[1732085311480,6.43883,3106.2,3106.0,0.02908629]
[1732085311779,3.21947,3106.1,3106.0,0.02908629]
[1732085312076,4.04277,3106.1,3106.0,0.02908629]
[1732085312285,4.90316348,3106.1,3106.0,0.02908629]
[1732085312438,4.90316348,3106.1,3105.6,0.8293]
[1732085312439,3.21979,3105.8,3105.6,0.8293]
[1732085312645,3.21979,3105.8,3105.7,0.02917391]
[1732085313141,3.21979,3105.8,3105.3,4.04958]
[1732085313335,0.8233,3106.1,3105.7,0.02917598]
[1732085313577,3.21977,3105.9,3105.3,4.04951]
[1732085313782,3.21976,3105.9,3105.8,0.02917223]
[1732085313956,3.21976,3105.9,3105.3,4.04951]
[1732085314272,3.21975,3105.9,3105.8,0.02917223]
[1732085314477,3.21975,3105.9,3105.3,4.91106708]
[1732085314977,3.21975,3105.9,3105.4,0.02926511]
[1732085316472,6.4395,3105.9,3105.4,0.02926511]
[1732085316641,3.21975,3105.9,3105.4,0.02926511]
[1732085317581,3.21979,3105.8,3105.4,0.02926511]
[1732085317899,0.8233,3106.1,3105.4,0.02926511]
[1732085317900,4.04282,3106.1,3105.4,0.02926511]
[1732085318063,3.21969,3105.9,3105.4,0.02926511]
[1732085319369,4.58128148,3106.1,3105.4,0.02926511]
[1732085319370,7.26238,3106.1,3105.4,0.02926511]
[1732085319576,4.04282,3106.1,3105.5,3.22002]
[1732085319777,4.04282,3106.1,3105.6,3.21992]
[1732085319778,4.04278,3106.1,3105.6,3.21992]
[1732085320100,4.04278,3106.1,3105.6,3.2485848]
[1732085320666,3.21958,3106.0,3105.6,0.0286648]
[1732085320862,3.21958,3106.0,3105.4,3.22012]
[1732085321076,3.21958,3106.0,3105.5,0.43363003]
[1732085322175,3.21968,3105.9,3105.5,0.43363003]
[1732085326545,4.04278,3106.1,3105.5,3.65371003]
[1732085326753,7.26233,3106.1,3105.5,3.65371003]
[1732085326956,3.21969,3105.9,3105.5,0.43363003]
[1732085327116,3.21969,3105.9,3105.5,0.02868803]
[1732085327316,3.21978,3105.8,3105.3,4.04959]
[1732085327516,3.21969,3105.9,3105.6,0.0286672]
[1732085327757,3.21969,3105.9,3105.3,4.776586]
[1732085327962,3.21969,3105.9,3105.7,0.02864398]
[1732085328253,3.21969,3105.9,3105.4,3.22019]
[1732085328456,3.21969,3105.9,3105.8,0.02862077]
[1732085328702,3.21969,3105.9,3105.4,3.22019]
[1732085328968,3.21969,3105.9,3105.8,0.02862077]
[1732085329128,3.2198,3105.8,3105.3,0.8293]
[1732085329332,3.2198,3105.8,3105.3,4.04957]
[1732085330035,3.21969,3105.9,3105.3,4.04957]
[1732085330377,3.21969,3105.9,3105.4,0.726994]
[1732085331578,3.21969,3105.9,3105.5,0.02869043]
[1732085332140,3.2198,3105.8,3105.5,0.02869043]
[1732085332825,3.2198,3105.8,3105.3,4.04957]
[1732085333030,3.21988,3105.7,3105.6,0.02867543]
[1732085333275,3.21969,3105.9,3105.3,1.234257]
[1732085333276,3.2198,3105.8,3105.3,4.454517]
[1732085333457,3.2198,3105.8,3105.6,0.02867543]
[1732085333632,3.2198,3105.8,3105.3,4.04956]
[1732085333832,3.2198,3105.8,3105.7,0.02865221]
[1732085334070,3.2198,3105.8,3105.3,4.04956]
[1732085334260,3.2198,3105.8,3105.7,0.02865221]
[1732085334438,3.22,3105.6,3105.3,0.8293]
[1732085337181,3.2201,3105.5,3105.0,1.3804]
[1732085337355,0.7907,3105.7,3105.0,0.8304]
[1732085337557,3.22028,3105.4,3105.0,0.8304]
[1732085337779,3.2205,3105.1,3105.0,0.8304]
[1732085338093,3.22062,3105.0,3104.7,0.8304]
[1732085338295,3.22052,3105.1,3104.7,0.8304]
[1732085338499,3.22065,3105.0,3104.7,0.8304]
[1732085339984,6.44094,3105.2,3104.7,0.8304]
[1732085340371,3.22045,3105.2,3104.7,0.8304]
[1732085340557,3.22045,3105.2,3104.7,4.0513]
[1732085340756,6.44093,3105.2,3104.7,0.8304]
[1732085340959,3.22045,3105.2,3104.7,0.8304]
[1732085342406,3.22045,3105.2,3104.7,4.05126]
[1732085343296,4.011,3105.3,3104.7,7.27211]
[1732085343497,4.011,3105.3,3104.7,4.05125]
[1732085343703,3.22002,3105.6,3105.0,3.22053]
[1732085344006,3.22002,3105.6,3104.9,4.0511]
[1732085344311,3.22019,3105.4,3104.9,4.0511]
[1732085344810,3.22038,3105.3,3104.9,0.8304]
[1732085345216,6.44048,3105.4,3104.9,0.8304]
[1732085345366,3.22031,3105.3,3104.9,0.8304]
[1732085345769,4.01115,3105.2,3104.6,0.8304]
[1732085346013,3.22059,3105.1,3104.6,0.8304]
[1732085346308,4.01115,3105.2,3104.6,7.27232]
[1732085346471,4.01115,3105.2,3104.6,4.05136]
[1732085348703,7.23163,3105.2,3104.6,4.05136]
[1732085349114,4.01115,3105.2,3104.6,4.05136]
[1732085349484,3.22025,3105.4,3104.8,3.22073]
[1732085350617,3.22025,3105.4,3104.8,6.44147]
[1732085350910,3.22025,3105.4,3104.9,3.2207]
[1732085351675,4.01532,3105.6,3105.0,3.2206]
[1732085351875,7.23538,3105.6,3105.1,0.764]
[1732085352322,3.22022,3105.4,3105.1,0.764]
[1732085352687,3.22022,3105.4,3104.9,0.764]
[1732085353575,3.22022,3105.4,3104.9,3.98468]
[1732085354482,3.2201,3105.5,3105.0,3.22054]
[1732085355589,4.0153,3105.6,3105.0,3.22054]
[1732085356077,7.23537,3105.6,3105.0,3.22054]
[1732085356278,4.0153,3105.6,3105.0,3.22054]
[1732085356514,3.22012,3105.5,3105.0,3.22054]
[1732085357211,3.22,3105.6,3105.0,3.22054]
[1732085357516,3.22,3105.6,3105.0,6.44108]
[1732085357821,3.22,3105.6,3105.0,3.22054]
[1732085357971,0.7983,3105.9,3105.2,0.764]
[1732085359178,3.21978,3105.8,3105.3,3.22029]
[1732085361187,3.21969,3105.9,3105.4,0.764]
[1732085361383,3.21969,3105.9,3105.4,1.162423]
[1732085362529,3.2198,3105.8,3105.4,1.162423]
[1732085363019,3.2198,3105.8,3105.4,0.764]
[1732085365122,3.22045,3105.2,3104.7,0.764]
[1732085365805,3.22051,3105.1,3104.7,0.764]
[1732085365992,3.22051,3105.1,3104.8,0.48464335]
[1732085366195,3.22051,3105.1,3104.7,0.764]
[1732085367009,4.02687,3105.3,3104.7,0.764]
[1732085367506,3.22042,3105.2,3104.7,0.764]
[1732085367816,3.22042,3105.2,3104.8,0.3985]
[1732085369030,6.44052,3105.4,3104.7,7.20574]
[1732085369323,3.2203,3105.3,3104.7,3.98483]
[1732085369626,3.22024,3105.4,3104.7,3.98483]
[1732085369627,3.22024,3105.4,3104.7,4.70542]
[1732085369966,3.22024,3105.4,3104.9,3.22071]
[1732085370833,3.22024,3105.4,3105.0,0.7943]
[1732085371121,3.22003,3105.6,3105.0,4.01488]
[1732085371282,3.22003,3105.6,3105.1,3.622001]
[1732085372912,3.22003,3105.6,3105.1,0.401501]
[1732085373117,3.22003,3105.6,3105.0,4.0149]
[1732085373754,3.21969,3105.9,3105.3,4.01452]
[1732085373908,3.21969,3105.9,3105.4,0.723483]
[1732085374112,3.21969,3105.9,3105.3,4.01452]
[1732085374311,4.02612,3106.0,3105.3,0.7943]
[1732085374545,3.2198,3105.8,3105.3,0.7943]
[1732085374756,3.2198,3105.8,3105.3,4.01457]
[1732085377068,3.21962,3106.0,3105.4,3.22013]
[1732085377250,3.21962,3106.0,3105.4,3.621587]
[1732085377563,3.21962,3106.0,3105.5,0.7943]
[1732085378247,3.21968,3105.9,3105.5,0.7943]
[1732085378429,3.21962,3106.0,3105.5,0.7943]
[1732085379534,3.21962,3106.0,3105.5,0.6743]
[1732085380443,3.21967,3105.9,3105.5,0.6743]
[1732085387206,3.21949,3106.1,3105.5,0.6743]
[1732085387353,3.21949,3106.1,3105.6,3.21991]
[1732085388480,7.88108476,3106.3,3105.7,0.8155]
[1732085388481,6.53929,3106.3,3105.7,0.8155]
[1732085388665,6.53929,3106.3,3105.8,3.21976]
[1732085389860,6.53929,3106.3,3105.7,0.8155]
[1732085390059,3.21947,3106.1,3105.7,0.8155]
[1732085390300,6.53929,3106.3,3105.7,0.8155]
[1732085390473,3.21938,3106.2,3105.7,4.03537]
[1732085390682,3.21938,3106.2,3105.7,0.8155]
[1732085392388,3.21938,3106.2,3105.7,4.03538]
[1732085392790,3.21938,3106.2,3105.7,0.8155]
[1732085392991,3.21938,3106.2,3105.7,4.03537]
[1732085393567,3.84938427,3106.3,3105.8,3.21977]
[1732085393768,3.32,3106.3,3105.8,3.21977]
[1732085393991,6.53926,3106.3,3105.8,3.21977]
[1732085401022,1.812616,3106.6,3105.9,0.7799]
[1732085401233,3.21906,3106.5,3106.0,3.21948]
[1732085401428,3.21906,3106.5,3106.1,0.7799]
[1732085401924,4.56077476,3106.6,3106.1,0.7799]
[1732085402285,3.21911,3106.5,3106.1,0.7799]
[1732085402628,3.21935,3106.3,3106.1,0.7799]
[1732085403125,3.21907,3106.5,3106.1,0.7799]
[1732085403285,1.34179476,3106.4,3105.9,0.7799]
[1732085403485,3.21946,3106.2,3105.9,0.7799]
[1732085403888,3.21934,3106.3,3105.6,3.99988]
[1732085404336,3.21953,3106.1,3105.6,0.7799]
[1732085404632,3.942385,3106.1,3105.6,0.7799]
[1732085404837,3.21969,3105.9,3105.6,0.7799]
[1732085405714,3.21953,3106.1,3105.6,0.7799]
[1732085406997,3.21938,3106.2,3105.6,3.99982]
[1732085407336,4.009,3106.3,3105.6,3.99982]
[1732085407337,3.21947,3106.1,3105.6,3.99982]
[1732085407894,3.21938,3106.2,3105.6,3.99982]
[1732085408295,4.54407948,3106.3,3105.7,3.21979]
[1732085408733,3.21937,3106.2,3105.7,3.21979]
[1732085410096,4.54407948,3106.3,3105.8,3.21978]
[1732085410299,3.21922,3106.4,3105.9,0.7799]
[1732085410607,3.21937,3106.2,3105.9,0.7799]
[1732085410811,3.21947,3106.1,3105.7,0.7799]
[1732085410996,3.21937,3106.2,3105.7,0.7799]
[1732085411202,0.400907,3106.1,3105.7,0.7799]
[1732085411625,3.620427,3106.1,3105.7,0.7799]
[1732085412931,3.21958,3106.0,3105.7,0.7799]
[1732085415669,3.620457,3106.1,3105.7,0.7799]
[1732085415874,3.21958,3106.0,3105.7,0.7799]
[1732085416026,3.70205775,3106.0,3105.7,0.7799]
[1732085422297,3.21968,3105.9,3105.7,0.7799]
[1732085422883,3.70205775,3106.0,3105.7,0.7799]
[1732085423070,6.92170775,3106.0,3105.7,0.7799]
[1732085423475,3.70205775,3106.0,3105.7,0.7799]
[1732085424061,6.92171775,3106.0,3105.7,0.7799]
[1732085424282,3.70205775,3106.0,3105.7,0.7799]
[1732085424654,6.92170775,3106.0,3105.7,0.7799]
[1732085425396,3.70205775,3106.0,3105.7,0.7799]
[1732085429707,6.92171775,3106.0,3105.7,0.7799]
[1732085430002,3.21967,3105.9,3105.7,0.7799]
[1732085432314,3.21967,3105.9,3105.8,0.06680181]
[1732085432724,3.21967,3105.9,3105.7,0.7799]
[1732085433018,3.21967,3105.9,3105.8,0.06680212]
[1732085433205,3.21967,3105.9,3105.7,0.7799]
[1732085433407,3.21967,3105.9,3105.8,0.06680623]
[1732085433606,3.21967,3105.9,3105.7,0.7799]
[1732085433912,0.400907,3106.1,3105.8,0.06680623]